{"text_format":"3","workbook":"xlsx","n_sheets":26,"sheets":["P&G","Mechanical","Mechanical 2","Mechanical Summary","Electrical","Electrical 2","Electrical 3","Electrical 4","Electrical 5","Electrical 6","Electrical 7","Electrical 8","Electrical 9","Electrical 10","Electrical 11","Electrical 12","Electrical 13","Electrical 14","Electrical 15","Electrical 16","Electrical Summary","Building","Building 2","Building Summary","OHS","Final Summary"],"not_rendered":{"external_links":1,"defined_names":1},"read":"whole","date_system":"1900"}

{"sheet":"P&G","index":0,"n_rows":93,"n_cols":7,"rows_kept":93,"merged":[[0,0,0,2],[1,0,1,6],[2,0,2,5],[4,3,4,6],[5,3,5,6],[53,3,53,6],[77,3,78,6],[92,0,92,5]]}
[]
["METSIMAHOLO LOCAL MUNICIPALITY"]
["BILL A:  Preliminary & General"]
["Item","Pay Ref","Description","Unit","Qty","Rate","Amount"]
[null,"SANS","Schedule 1"]
[null,1200,"Preliminary and general"]
[1.1,null,"Fixed charge items"]
["1.1.1","A8.3.1","Contractual requirements","sum",1]
[null,null,"affecting the Contractor"]
[null,"A8.3.2","The Contractor to provide "]
[null,null,"the following "]
[null,null,"items or as amended in the"]
[null,null,"Tender Document :"]
["1.1.2","PSAB 3.1","Name board (2 number) as","sum",1]
[null,null,"specified in the Tender"]
[null,null,"Document"]
["1.1.3","PSA8.3.2.1","Furnished office for the","sum",1]
[null,null,"Engineer's use"]
[null,"PSAB3.2"]
["1.1.4","PSAB 5.5","Survey assistant as & when","sum",1]
[null,null,"required by the Engineer"]
["1.1.5","PSAB 5.6","Survey equipments as & when","sum",1]
[null,null,"required by the Engineer"]
["1.1.6","PSAB4","Telephone facilities for the","Prov",1,{"v":26000,"d":"26,000.00"},{"v":26000,"d":"26,000.00"}]
[null,null,"Engineer"]
["1.1.7","PSAB5.7","Personnel computer & digital","sum",1]
[null,null,"camera"]
["1.1.8","A8.3.2.2a","Offices & storage facilities for","sum",1]
[null,null,"the Contractor"]
["1.1.9","A8.3.2.2b","Workshops for the Contractor","sum",1]
[null,null,"as required by The Contract"]
["1.1.10","A8.3.2.2d","Living accommodations for the","sum",1]
[null,null,"Contractor's personnel"]
["1.1.11","A8.3.2.2e","Ablution & latrine facilities for","sum",1]
[null,null,"the Contractor's personnel"]
["1.1.12","A8.3.2.2f","Supply tools & equipment’s as","sum",1]
[null,null,"required by The Contract"]
["1.1.13","A8.3.2.2g","Water, electricity &","sum",1]
[null,null,"communications as required"]
[null,null,"by The Contract"]
[null,null,"Other obligations by the "]
[null,null,"Contractor :"]
["1.1.14","A8.3.2.2h","Deal with rain and/or ground ","sum",1]
[null,null,"water in all type of excavations"]
[null,null,"on site"]
[null,null,"as described in SANS 1 200 A"]
[null,null,"section 5.5"]
["1.1.15","A8.8.1","Establish access road to site","sum",1]
[null,null,"where it is necessary"]
["1.1.16","A8.3.3","Fixed charge obligations by","sum",1]
[null,null,"the Contractor"]
["1.1.17","A8.3.4","Removal of site establishment","sum",1]
[]
[1.2,null,"Time related items"]
["1.2.1","A8.4.1","Contractual requirements on a","sum",1]
[null,null,"monthly bases affecting the"]
[null,null,"Contractor"]
[null,null,"The Contractor to maintain "]
[null,null,"the following items or as "]
[null,null,"amended in the"]
[null,null,"Tender Document - for the "]
[null,null,"duration of the Contract :"]
["1.2.2","A8.4.2.2","All facilities on the site for the","sum",1]
[null,null,"Engineer & for the Contractor"]
[null,null,"Other obligations by the "]
[null,null,"Contractor on a time bases "]
[null,null,"for the duration"]
[null,null,"of the Contract :"]
["1.2.3","A8.4.3","Full time supervision of the site","sum",1]
[null,null,"as specified in the Tender"]
[null,null,"Document"]
["1.2.4","A8.4.4","Company & head office","sum",1]
[null,null,"administration costs pertaining"]
[null,null,"to the Contract"]
["1.2.5","A8.4.5","Other time related obligations","sum",1]
[null,null,"by the Contractor"]
[]
[1.3,null,"Provisional sums by the"]
[null,null,"Engineer"]
["1.3.1","PSA5.10.1","Provisional sum for various","Prov",1,{"v":200000,"d":"200,000.00"},{"v":200000,"d":"200,000.00"}]
[null,null,"tests requested by the"]
[null,null,"Engineer"]
["1.3.2","A8.8.2","Provision for traffic control as","Prov",1,{"v":30000,"d":"30,000.00"},{"v":30000,"d":"30,000.00"}]
[null,null,"requested by the Engineer"]
["1.3.3","PSA5.10.1","Provisional sum for","Prov",1,{"v":120000,"d":"120,000.00"},{"v":120000,"d":"120,000.00"}]
[null,null,"community involvement/CLO"]
[null,null,"payment"]
[13.4,"PSA5.10.1","Provisional sum for","Prov",1,{"v":100000,"d":"100,000.00"},{"v":100000,"d":"100,000.00"}]
[null,null,"Training of two (2) Students"]
["1.3.5","A8.5b","Contractor's overhead and","%"]
[null,null,"profit on Item 1.3.3"]
[]
["TOTAL CARRIED TO SUMMARY PAGE"]

{"sheet":"Mechanical","index":1,"n_rows":35,"n_cols":7,"rows_kept":35,"merged":[[0,0,0,2],[1,0,1,6],[2,0,2,6],[4,3,4,6],[5,0,5,6],[18,0,18,5],[19,0,19,6],[20,3,20,6],[21,0,21,6],[34,0,34,5],[35,0,35,6],[111,0,111,6]]}
[]
["METSIMAHOLO LOCAL MUNICIPALITY"]
["BILL B: MECHANICAL"]
["Item","Pay Ref.","Description","Unit","Qty","Rate","Amount"]
["1.",null,"Suction Actuated Isolation Valves"]
["! The Contractor must include for the following; Design, G.A. drawings, manufacture/supply, deliver/store, install, commission, up-hold during the 12-month defects liability period and training, of the equipment listed below. All work and equipment must comply with the specifications forming part of the contract document."]
[1.1,null,"Design & G.A. Drawings.","Sum",1]
[]
[1.2,null,"Supply/ Manufacture of Metal Seat Gate Valves Complete.","Each",4]
[]
[1.3,null,"Supply/ Manufacture of Valve Actuator Complete.","Each",4]
[]
[1.4,null,"Install Valves Complete.","Each",4]
[]
[1.5,null,"Install Actuators Complete.","Each",4]
[]
[1.6,null,"Commission Actuated Valves.","Each",4]
[]
["TOTAL"]
[]
["2.",null,"Delivery Actuated Isolation Valves"]
["! The Contractor must include for the following; Design, G.A. drawings, manufacture/supply, deliver/store, install, commission, up-hold during the 12-month defects liability period and training, of the equipment listed below. All work and equipment must comply with the specifications forming part of the contract document."]
[2.1,null,"Design & G.A. Drawings.","Sum",1]
[]
[2.2,null,"Supply/ Manufacture of Metal Seat Gate Valves Complete.","Each",4]
[]
[2.3,null,"Supply/ Manufacture of Valve Actuator Complete.","Each",4]
[]
[2.4,null,"Install Valves Complete.","Each",4]
[]
[2.5,null,"Install Actuators Complete.","Each",4]
[]
[2.6,null,"Commission Actuated Valves.","Each",4]
[]
["TOTAL CARRIED TO NEXT PAGE"]

{"sheet":"Mechanical 2","index":2,"n_rows":56,"n_cols":7,"rows_kept":56,"merged":[[0,0,0,2],[1,0,1,6],[2,0,2,6],[4,0,4,5],[5,3,5,6],[6,0,6,6],[15,0,15,5],[16,0,16,6],[17,0,17,6],[18,3,18,6],[19,0,19,6],[27,0,27,5],[28,0,28,6],[29,3,29,6],[30,0,30,6],[39,0,39,5],[40,0,40,6],[41,3,41,6],[42,0,42,6],[54,0,54,5],[55,0,55,5]]}
[]
["METSIMAHOLO LOCAL MUNICIPALITY"]
["BILL B: MECHANICAL"]
["Item","Pay Ref.","Description","Unit","Qty","Rate","Amount"]
["Total carried from previous page"]
["3.",null,"Delivery Check Valves"]
["! The Contractor must include for the following; Design, G.A. drawings, manufacture/supply, deliver/store, install, commission, up-hold during the 12-month defects liability period and training, of the equipment listed below. All work and equipment must comply with the specifications forming part of the contract document."]
["3.1",null,"Design & G.A. Drawings.","Sum",1]
[]
[3.2,null,"Supply/ Manufacture of Nozzle Check Valves Complete.","Each",4]
[]
[3.3,null,"Install Valves Complete.","Each",4]
[]
[3.4,null,"Commission Valves.","Each",4]
[]
["Total"]
[]
[]
["4.",null,"Ventilation"]
["! The Contractor must include for the following; Design, G.A. drawings, manufacture/supply, deliver/store, install, commission, up-hold during the 12-month defects liability period and training, of the equipment listed below. All work and equipment must comply with the specifications forming part of the contract document."]
[4.1,null,"Design & G.A. Drawings.","Sum",1]
[]
[4.2,null,"Supply/ Manufacture of Ventilation System Complete.","Sum",1]
[]
[4.3,null,"Install of Ventilation System Complete.","Sum",1]
[]
[4.4,null,"Commission of Ventilation System Complete.","Sum ",1]
["TOTAL"]
[]
["5.",null,"Lifting Equipment"]
["! The Contractor must include for the following; Design, G.A. drawings, manufacture/supply, deliver/store, install, commission, up-hold during the 12-month defects liability period and training, of the equipment listed below. All work and equipment must comply with the specifications forming part of the contract document."]
[5.1,null,"Design & G.A. Drawings.","Sum",1]
[]
[5.2,null,"Supply/ Manufacture of Electrical Hoists Complete.","Each",2]
[]
[5.3,null,"Install of Electrical Hoists Complete.","Each",2]
[]
[5.4,null,"Commission of Electrical Hoists Complete.","Each",2]
[]
["TOTAL"]
[]
["6.",null,"Inflow Meter"]
["! The Contractor must include for the following; Design, G.A. drawings, manufacture/supply, deliver/store, install, commission, up-hold during the 12-month defects liability period and training, of the equipment listed below. All work and equipment must comply with the specifications forming part of the contract document."]
[6.1,null,"Design & G.A. Drawings.","Sum",1]
[]
[6.2,null,"Supply/ Manufacture of Electromagnetic Flow Meter Complete.","Each",1]
[]
[6.3,null,"Install of Electromagnetic Flow Meter Complete.","Each",1]
[]
[6.4,null,"Commission of Electromagnetic Flow Meter Complete.","Each",1]
[]
[6.5,null,"Provisional sum for modification to existing pipe work to fit flow meter.","PC Sum",1,{"v":350000,"d":"350,000.00"},{"v":350000,"d":"350,000.00"}]
[]
[6.6,null,"Provisional sum for modification to existing chamber to fit flow meter.","PC Sum",1,{"v":100000,"d":"100,000.00"},{"v":100000,"d":"100,000.00"}]
["TOTAL"]
["TOTAL CARRIED TO SUMMARY PAGE"]

{"sheet":"Mechanical Summary","index":3,"n_rows":8,"n_cols":4,"rows_kept":8,"merged":[[0,0,0,2]]}
["BILL B: Total Summary Page for Mechanical Works",null,null,"Amount"]
[1,"Suction Actuated Isolation Valves",null," R"]
[2,"Delivery Actuated Isolation Valves",null," R"]
[3,"Delivery Check Valves",null," R"]
[4,"Ventilation",null," R"]
[5,"Lifting Equipment",null," R"]
[6,"Inflow Meter"]
[null,"SUB-TOTAL BILL B to be Carried to Final Summary",null," R"]

{"sheet":"Electrical","index":4,"n_rows":27,"n_cols":7,"rows_kept":27,"merged":[[0,0,0,6],[25,0,25,6],[26,0,26,6]]}
["BILL C: ELECTRICAL EQUIPMENT"]
["Item","Pay Ref.","Description","Unit","Qty","Rate","Amount"]
[1,null,"Medium Voltage Switchgear"]
[]
[{"$f":"A3+0.1","v":1.1},{"$f":"\"EPS-0\"&A3","v":"EPS-01"},"Remove existing Medium Voltage Switchgear, as specified in the project specification.","each",2]
[null,"!","The item will be certified for payment when the drawings is approved by the engineer. The contractor will be liable for any costs incurred for equipment ordered or manufactured without approval of the drawings."]
[]
[{"$f":"A5+0.1","v":1.2000000000000002},{"$f":"B5","v":"EPS-01"},"Design and complete panel layout drawings and line-diagrams for the Medium Voltage Switchgear, to submit for the approval of the engineer, as specified in the project specification.","each",2]
[null,"!","The item will be certified for payment when the drawings is approved by the engineer. The contractor will be liable for any costs incurred for equipment ordered or manufactured without approval of the drawings."]
[]
[{"$f":"A8+0.1","v":1.3000000000000003},{"$f":"B8","v":"EPS-01"},"Supply, manufacture, deliver and safe keeping of the Medium Voltage Switchgear and all ancillary equipment, as specified in the project specification and approved drawings and diagrams.","each",2]
[null,"!","The equipment must be stored on-site, or an extended site, accepted by the client and the engineer. The item will be certified for payment when the equipment has been factory tested and inspected by the engineer."]
[]
[{"$f":"A11+0.1","v":1.4000000000000004},{"$f":"B11","v":"EPS-01"},"Install and terminate the Medium Voltage Switchgear with all the ancillary equipment, as specified in the project specification.","each",2]
[null,"!","The equipment must be installed and terminated if and when the civil and mechanical works has been completed and the contractor has permission from the engineer. The item will be certified for payment when the equipment has been inspected, after installation on-site, by the engineer."]
[]
[{"$f":"A14+0.1","v":1.5000000000000004},{"$f":"B14","v":"EPS-01"},"Commission the Medium Voltage Switchgear and ancillary equipment, as specified in the project specification.","each",2]
[null,"!","The equipment will be commissioned if and when the equipment can be put in operation for their intended use. The equipment will be dry commissioned before wet commissioning can commence. As part of the commissioning, the contractor shall submit his/her operation and maintenance manual for approval. The item will be certified for payment when the equipment has been wet commissioned, the equipment can operate and perform as per the project specification and their intended use and the operation and maintenance manual has been approved and accepted by the engineer."]
[]
[{"$f":"A17+0.1","v":1.6000000000000005},{"$f":"B17","v":"EPS-01"},"Training of the plant operators on the Medium Voltage Switchgear and accessories.","sum",1]
[null,"!","The contractor must facilitate a training session to the necessary plant personnel to instruct and explain the operation and maintenance of the equipment to them. The operation and maintenance manual will serve as the study material of this training session. The item will be certified for payment when the engineer has proof that this training was done."]
[]
[]
[]
[null,null,"TOTAL CARRIED TO SUMMARY PAGE"]
[]
["Client                    Witness 1                    Witness 2                    Contractor                    Witness 1                    Witness 2"]

{"sheet":"Electrical 2","index":5,"n_rows":30,"n_cols":7,"rows_kept":30,"merged":[[0,0,0,6],[0,7,0,8],[1,7,1,8],[27,2,27,5],[28,0,28,6],[29,0,29,6]]}
[{"$f":"'[1]C BoQ'!B90","v":"BILL C: ELECTRICAL EQUIPMENT"}]
[{"$f":"'[1]C BoQ'!B91","v":"Item"},{"$f":"'[1]C BoQ'!C91","v":"Pay Ref."},{"$f":"'[1]C BoQ'!D91","v":"Description"},{"$f":"'[1]C BoQ'!E91","v":"Unit"},{"$f":"'[1]C BoQ'!F91","v":"Qty"},{"$f":"'[1]C BoQ'!G91","v":"Rate"},{"$f":"'[1]C BoQ'!H91","v":"Amount"}]
[{"$f":"'[1]C BoQ'!B92","v":2},null,{"$f":"'[1]C BoQ'!D92","v":"500kVA 11kV/400V Transformer"}]
[]
[{"$f":"'[1]C BoQ'!B94","v":2.1},{"$f":"'[1]C BoQ'!C94","v":"EPS-02"},{"$f":"'[1]C BoQ'!D94","v":"Remove existing Transformer, as specified in the project specification."},{"$f":"'[1]C BoQ'!E94","v":"each"},{"$f":"'[1]C BoQ'!F94","v":2}]
[null,{"$f":"'[1]C BoQ'!C95","v":"!"},{"$f":"'[1]C BoQ'!D95","v":"The item will be certified for payment when the drawings is approved by the engineer. The contractor will be liable for any costs incurred for equipment ordered or manufactured without approval of the drawings."}]
[]
[{"$f":"'[1]C BoQ'!B97","v":2.2},{"$f":"'[1]C BoQ'!C97","v":"EPS-02"},{"$f":"'[1]C BoQ'!D97","v":"Design and complete layout drawings and line-diagrams for the 500kVA 11kV/400V Transformer, to submit for the approval of the engineer, as specified in the project specification."},{"$f":"'[1]C BoQ'!E97","v":"each"},{"$f":"'[1]C BoQ'!F97","v":2}]
[null,{"$f":"'[1]C BoQ'!C98","v":"!"},{"$f":"'[1]C BoQ'!D98","v":"The item will be certified for payment when the drawings is approved by the engineer. The contractor will be liable for any costs incurred for equipment ordered or manufactured without approval of the drawings."}]
[]
[{"$f":"'[1]C BoQ'!B100","v":2.3000000000000003},{"$f":"'[1]C BoQ'!C100","v":"EPS-02"},{"$f":"'[1]C BoQ'!D100","v":"Supply, manufacture, deliver and safe keeping of the 500kVA 11kV/400V Transformer and all ancillary equipment, as specified in the project specification and approved drawings and diagrams."},{"$f":"'[1]C BoQ'!E100","v":"each"},{"$f":"'[1]C BoQ'!F100","v":2}]
[null,{"$f":"'[1]C BoQ'!C101","v":"!"},{"$f":"'[1]C BoQ'!D101","v":"The equipment must be stored on-site, or an extended site, accepted by the client and the engineer. The item will be certified for payment when the equipment has been factory tested and inspected by the engineer."}]
[]
[{"$f":"'[1]C BoQ'!B103","v":2.4000000000000004},{"$f":"'[1]C BoQ'!C103","v":"EPS-02"},{"$f":"'[1]C BoQ'!D103","v":"Install and terminate the 500kVA 11kV/400V Transformer with all the ancillary equipment, as specified in the project specification."},{"$f":"'[1]C BoQ'!E103","v":"each"},{"$f":"'[1]C BoQ'!F103","v":2}]
[null,{"$f":"'[1]C BoQ'!C104","v":"!"},{"$f":"'[1]C BoQ'!D104","v":"The equipment must be installed and terminated if and when the civil and mechanical works has been completed and the contractor has permission from the engineer. The item will be certified for payment when the equipment has been inspected, after installation on-site, by the engineer."}]
[]
[{"$f":"'[1]C BoQ'!B106","v":2.5000000000000004},{"$f":"'[1]C BoQ'!C106","v":"EPS-02"},{"$f":"'[1]C BoQ'!D106","v":"Commission the 500kVA 11kV/400V Transformer and ancillary equipment, as specified in the project specification."},{"$f":"'[1]C BoQ'!E106","v":"each"},{"$f":"'[1]C BoQ'!F106","v":2}]
[null,{"$f":"'[1]C BoQ'!C107","v":"!"},{"$f":"'[1]C BoQ'!D107","v":"The equipment will be commissioned if and when the equipment can be put in operation for their intended use. The equipment will be dry commissioned before wet commissioning can commence. As part of the commissioning, the contractor shall submit his/her operation and maintenance manual for approval. The item will be certified for payment when the equipment has been wet commissioned, the equipment can operate and perform as per the project specification and their intended use and the operation and maintenance manual has been approved and accepted by the engineer."}]
[]
[{"$f":"'[1]C BoQ'!B109","v":2.6000000000000005},{"$f":"'[1]C BoQ'!C109","v":"EPS-02"},{"$f":"'[1]C BoQ'!D109","v":"Training of the plant operators on the 500kVA 11kV/400V Transformer and accessories."},{"$f":"'[1]C BoQ'!E109","v":"sum"},{"$f":"'[1]C BoQ'!F109","v":1}]
[null,{"$f":"'[1]C BoQ'!C110","v":"!"},{"$f":"'[1]C BoQ'!D110","v":"The contractor must facilitate a training session to the necessary plant personnel to instruct and explain the operation and maintenance of the equipment to them. The operation and maintenance manual will serve as the study material of this training session. The item will be certified for payment when the engineer has proof that this training was done."}]
[]
[]
[]
[]
[]
[]
[null,null,{"$f":"'[1]C BoQ'!D117","v":"TOTAL CARRIED TO SUMMARY PAGE"}]
[]
[{"$f":"'[1]C BoQ'!B119","v":"Client                    Witness 1                    Witness 2                    Contractor                    Witness 1                    Witness 2"}]

{"sheet":"Electrical 3","index":6,"n_rows":31,"n_cols":7,"rows_kept":31,"merged":[[0,0,0,6],[30,2,30,5]]}
["BILL C: ELECTRICAL EQUIPMENT"]
["Item","Pay Ref.","Description","Unit","Qty","Rate","Amount"]
[3,null,"Main MCC"]
[]
[{"$f":"A3+0.1","v":3.1},{"$f":"\"EPS-0\"&A3","v":"EPS-03"},"Remove existing Main MCC, as specified in the project specification.","sum",1]
[null,"!","The item will be certified for payment when the drawings is approved by the engineer. The contractor will be liable for any costs incurred for equipment ordered or manufactured without approval of the drawings."]
[]
[{"$f":"A5+0.1","v":3.2},{"$f":"\"EPS-0\"&A3","v":"EPS-03"},"Design and complete panel layout drawings and line-diagrams for the Main MCC, to submit for the approval of the engineer, as specified in the project specification.","each",2]
[null,"!","The item will be certified for payment when the drawings is approved by the engineer. The contractor will be liable for any costs incurred for equipment ordered or manufactured without approval of the drawings."]
[]
[{"$f":"A8+0.1","v":3.3000000000000003},{"$f":"B8","v":"EPS-03"},"Supply, manufacture, deliver and safe keeping of the Main MCC and all ancillary equipment, as specified in the project specification and approved drawings and diagrams.","each",2]
[null,"!","The equipment must be stored on-site, or an extended site, accepted by the client and the engineer. The item will be certified for payment when the equipment has been factory tested and inspected by the engineer."]
[]
[{"$f":"A11+0.1","v":3.4000000000000004},{"$f":"B11","v":"EPS-03"},"Install and terminate the Main MCC with all the ancillary equipment, as specified in the project specification.","each",2]
[null,"!","The equipment must be installed and terminated if and when the civil and mechanical works has been completed and the contractor has permission from the engineer. The item will be certified for payment when the equipment has been inspected, after installation on-site, by the engineer."]
[]
[{"$f":"A14+0.1","v":3.5000000000000004},{"$f":"B14","v":"EPS-03"},"Commission the Main MCC and ancillary equipment, as specified in the project specification.","each",2]
[null,"!","The equipment will be commissioned if and when the equipment can be put in operation for their intended use. The equipment will be dry commissioned before wet commissioning can commence. As part of the commissioning, the contractor shall submit his/her operation and maintenance manual for approval. The item will be certified for payment when the equipment has been wet commissioned, the equipment can operate and perform as per the project specification and their intended use and the operation and maintenance manual has been approved and accepted by the engineer."]
[]
[{"$f":"A17+0.1","v":3.6000000000000005},{"$f":"B17","v":"EPS-03"},"Training of the plant operators on the Main MCC and accessories.","sum",1]
[null,"!","The contractor must facilitate a training session to the necessary plant personnel to instruct and explain the operation and maintenance of the equipment to them. The operation and maintenance manual will serve as the study material of this training session. The item will be certified for payment when the engineer has proof that this training was done."]
[]
[{"$f":"A20+0.1","v":3.7000000000000006},{"$f":"B20","v":"EPS-03"},"Design and complete panel layout drawings and line-diagrams for the LV Bus Coupler, to submit for the approval of the engineer, as specified in the project specification.","sum",1]
[null,"!","The item will be certified for payment when the drawings is approved by the engineer. The contractor will be liable for any costs incurred for equipment ordered or manufactured without approval of the drawings."]
[]
[]
[]
[]
[]
[]
[null,null,"TOTAL CARRIED TO SUMMARY PAGE"]

{"sheet":"Electrical 4","index":7,"n_rows":55,"n_cols":7,"rows_kept":55,"merged":[[0,0,0,6],[53,0,53,6],[54,0,54,6]]}
["BILL C: ELECTRICAL EQUIPMENT"]
["Item","Pay Ref.","Description","Unit","Qty","Rate","Amount"]
[4,null,"Electrical Cables"]
[]
[null,null,"Allow for all the costs for the design, manufacture, testing, factory acceptance, supply, delivery, offloading and safe keeing, installation, testing and commissioning, of the following:"]
[]
[null,null,"Supply Cu PVC/SWA/PVC 600/1000V multicore cable with stranded conductors."]
[]
[4.1,{"$f":"\"EPS-0\"&A3","v":"EPS-04"},"2.5mm² x 4-core","m",100]
[]
[4.2,{"$f":"B9","v":"EPS-04"},"4mm² x 4-core","m",1,null,"Rate only"]
[]
[4.3,{"$f":"B11","v":"EPS-04"},"6mm² x 4-core","m",100]
[]
[4.4,{"$f":"B13","v":"EPS-04"},"10mm² x 4-core","m",1,null,"Rate only"]
[]
[4.5,{"$f":"B15","v":"EPS-04"},"16mm² x 4-core","m",1,null,"Rate only"]
[]
[4.6,{"$f":"B17","v":"EPS-04"},"25mm² x 4-core","m",10]
[]
[4.7,{"$f":"B19","v":"EPS-04"},"35mm² x 4-core","m",1,null,"Rate only"]
[]
[4.8,{"$f":"B21","v":"EPS-04"},"50mm² x 4-core","m",1,null,"Rate only"]
[]
[4.9,{"$f":"B21","v":"EPS-04"},"70mm² x 4-core","m",400]
[]
[4.1,{"$f":"B23","v":"EPS-04"},"95mm² x 4-core","m",1,null,"Rate only"]
[]
[4.11,{"$f":"B27","v":"EPS-04"},"120mm² x 4-core","m",1,null,"Rate only"]
[]
[4.12,{"$f":"B29","v":"EPS-04"},"150mm² x 4-core","m",1,null,"Rate only"]
[]
[4.13,{"$f":"B31","v":"EPS-04"},"185mm² x 4-core","m",1,null,"Rate only"]
[]
[4.14,{"$f":"B33","v":"EPS-04"},"240mm² x 4-core","m",1,null,"Rate only"]
[]
[4.15,{"$f":"B35","v":"EPS-04"},"300mm² x 4-core","m",1,null,"Rate only"]
[]
[4.16,{"$f":"B37","v":"EPS-04"},"630mm² x 1-core","m",800]
[]
[null,null,"Supply Cu 6.35/11kV PILC screened cable"]
[]
[4.17,{"$f":"B39","v":"EPS-04"},"25mm² x 3-core","m",100]
{"$rows_empty":9}
[null,null,"TOTAL CARRIED TO SUMMARY PAGE"]
[]
["Client                    Witness 1                    Witness 2                    Contractor                    Witness 1                    Witness 2"]

{"sheet":"Electrical 5","index":8,"n_rows":52,"n_cols":7,"rows_kept":52,"merged":[[0,0,0,6],[49,2,49,5],[50,0,50,6],[51,0,51,6]]}
["BILL C: ELECTRICAL EQUIPMENT"]
["Item","Pay Ref.","Description","Unit","Qty","Rate","Amount"]
[5,null,"Electrical Cables: Terminations"]
[]
[null,null,"Allow for all the costs for the design, manufacture, testing, factory acceptance, supply, delivery, offloading and safe keeing, installation, testing and commissioning, of the following:"]
[]
[null,null,"Supply of Cable terminations for Cu PVC/SWA/PVC Sheathed 600/1000V multicore cables, complete, including gland shroud, lugs, number tags, etc and connection."]
[]
[5.1,{"$f":"\"EPS-0\"&A3","v":"EPS-05"},"2.5mm² x 4 core","each",10]
[]
[5.2,{"$f":"B9","v":"EPS-05"},"4mm² x 4 core","each",1,null,"Rate only"]
[]
[{"$f":"_xlfn.CONCAT($B$210,\".\",#REF!)","v":{"$error":"#REF!"}},{"$f":"B11","v":"EPS-05"},"6mm² x 4 core","each",6]
[]
[5.3,{"$f":"B13","v":"EPS-05"},"10mm² x 4 core","each",1,null,"Rate only"]
[]
[5.4,{"$f":"B15","v":"EPS-05"},"16mm² x 4 core","each",1,null,"Rate only"]
[]
[5.5,{"$f":"B17","v":"EPS-05"},"25mm² x 4 core","each",4]
[]
[5.6,{"$f":"B19","v":"EPS-05"},"35mm² x 4 core","each",1,null,"Rate only"]
[]
[5.7,{"$f":"B21","v":"EPS-05"},"50mm² x 4 core","each",1,null,"Rate only"]
[]
[5.8,{"$f":"B21","v":"EPS-05"},"70mm² x 4 core","each",20]
[]
[5.9,{"$f":"B23","v":"EPS-05"},"95mm² x 4 core","each",1,null,"Rate only"]
[]
[5.1,{"$f":"B27","v":"EPS-05"},"120mm² x 4 core","each",1,null,"Rate only"]
[]
[5.11,{"$f":"B29","v":"EPS-05"},"150mm² x 4 core","each",1,null,"Rate only"]
[]
[5.12,{"$f":"B31","v":"EPS-05"},"185mm² x 4 core","each",1,null,"Rate only"]
[]
[5.13,{"$f":"B33","v":"EPS-05"},"240mm² x 4 core","each",1,null,"Rate only"]
[]
[5.14,{"$f":"B35","v":"EPS-05"},"300mm² x 4 core","each",1,null,"Rate only"]
[]
[5.15,{"$f":"B37","v":"EPS-05"},"630mm² x 1 core","each",20]
[]
[null,null,"Supply of Cable terminations for Cu 6.35/11kV PILC screened cables, complete, including gland shroud, lugs, number tags, etc and connection."]
[]
[5.16,{"$f":"B39","v":"EPS-05"},"25mm² x 3-core","m",4]
[]
[]
[]
[]
[]
[]
[null,null,"TOTAL CARRIED TO SUMMARY PAGE"]
[]
["Client                    Witness 1                    Witness 2                    Contractor                    Witness 1                    Witness 2"]

{"sheet":"Electrical 6","index":9,"n_rows":42,"n_cols":7,"rows_kept":42,"merged":[[0,0,0,6],[39,2,39,5],[40,0,40,6],[41,0,41,6]]}
["BILL C: ELECTRICAL EQUIPMENT"]
["Item","Pay Ref.","Description","Unit","Qty","Rate","Amount"]
[6,null,"Electrical Cables: BCEW"]
[]
[null,null,"Allow for all the costs for the design, manufacture, testing, factory acceptance, supply, delivery, offloading and safe keeing, installation, testing and commissioning, of the following:"]
[]
[null,null,"Supply of Bare Copper Earth Wire including terminations"]
[]
[6.1,{"$f":"\"EPS-0\"&A3","v":"EPS-06"},"2.5mm²","m",100]
[]
[6.2,{"$f":"B9","v":"EPS-06"},"4mm²","m",100]
[]
[6.3,{"$f":"B11","v":"EPS-06"},"6mm²","m",1,null,"Rate only"]
[]
[6.4,{"$f":"B13","v":"EPS-06"},"10mm²","m",1,null,"Rate only"]
[]
[6.5,{"$f":"B15","v":"EPS-06"},"16mm²","m",10]
[]
[6.6,{"$f":"B17","v":"EPS-06"},"25mm²","m",1,null,"Rate only"]
[]
[6.7,{"$f":"B19","v":"EPS-06"},"35mm²","m",400]
[]
[6.8,{"$f":"B21","v":"EPS-06"},"50mm²","m",1,null,"Rate only"]
[]
[6.9,{"$f":"B21","v":"EPS-06"},"70mm²","m",1,null,"Rate only"]
[]
[6.1,{"$f":"B23","v":"EPS-06"},"95mm²","m",1,null,"Rate only"]
[]
[6.11,{"$f":"B27","v":"EPS-06"},"120mm²","m",1,null,"Rate only"]
[]
[6.12,{"$f":"B29","v":"EPS-06"},"150mm²","m",1,null,"Rate only"]
[]
[6.13,{"$f":"B31","v":"EPS-06"},"185mm²","m",1,null,"Rate only"]
[]
[6.14,{"$f":"B33","v":"EPS-06"},"240mm²","m",1,null,"Rate only"]
[]
[6.15,{"$f":"B35","v":"EPS-06"},"300mm²","m",200]
[]
[]
[null,null,"TOTAL CARRIED TO SUMMARY PAGE"]
[]
["Client                    Witness 1                    Witness 2                    Contractor                    Witness 1                    Witness 2"]

{"sheet":"Electrical 7","index":10,"n_rows":32,"n_cols":7,"rows_kept":32,"merged":[[0,0,0,6],[29,2,29,5],[30,0,30,6],[31,0,31,6]]}
["BILL C: ELECTRICAL EQUIPMENT"]
["Item","Pay Ref.","Description","Unit","Qty","Rate","Amount"]
[7,null,"Excavations"]
[]
[null,null,"Excavate and set excavated material aside for reuse as filling for cable or sleeve trench not exceeding 1m deep"]
[]
[7.1,{"$f":"\"EPS-0\"&A3","v":"EPS-07"},"In earth","m³",25]
[]
[7.2,{"$f":"B7","v":"EPS-07"},"In soft rock","m³",5]
[]
[7.3,{"$f":"B9","v":"EPS-07"},"In rock","m³",1]
[]
[7.4,{"$f":"B11","v":"EPS-07"},"Bedding material imported from off-site source (provisional)","m³",50]
[]
[7.5,{"$f":"B13","v":"EPS-07"},"Danger tape - 400mm wide overlapping","m",820]
[]
[7.6,{"$f":"B15","v":"EPS-07"},"Cable marker with engraved steel plate","each",{"$f":"ROUNDUP(E15/50,0)","v":17}]
[]
[7.7,{"$f":"B17","v":"EPS-07"},"Bonding of all extraneous conductive parts.","sum",1]
[]
[7.8,{"$f":"B19","v":"EPS-07"},"Labelling of Cables and Equipment","sum",1]
[]
[7.9,{"$f":"B19","v":"EPS-07"},"Testing and Commissioning","sum",1]
[]
[]
[]
[]
[]
[]
[null,null,"TOTAL CARRIED TO SUMMARY PAGE"]
[]
["Client                    Witness 1                    Witness 2                    Contractor                    Witness 1                    Witness 2"]

{"sheet":"Electrical 8","index":11,"n_rows":21,"n_cols":7,"rows_kept":21,"merged":[[0,0,0,6],[18,2,18,5],[19,0,19,6],[20,0,20,6]]}
["BILL C: ELECTRICAL EQUIPMENT"]
["Item","Pay Ref.","Description","Unit","Qty","Rate","Amount"]
[8,null,"Electrical Cables Supports"]
[]
[{"$f":"A3+0.1","v":8.1},{"$f":"\"EPS-0\"&A3","v":"EPS-08"},"Compile a cable route plan, electrical motor and cable schedule for all the Electrical cables Supports, to submit for the approval of the engineer, as specified in the project specification.","sum",1]
[null,"!","The item will be certified for payment when the drawings & schedules is approved by the engineer. The contractor will be liable for any costs incurred for equipment ordered without approval of the drawings & schedules.."]
[]
[{"$f":"A5+0.1","v":8.2},{"$f":"B5","v":"EPS-08"},"Supply, deliver and safe keeping of the Electrical cables Supports and all ancillary equipment, as specified in the project specification and approved drawings and schedules.","sum",1]
[null,"!","The equipment must be stored on-site, or an extended site, accepted by the client and the engineer. The item will be certified for payment when the equipment has been inspected by the engineer."]
[]
[{"$f":"A8+0.1","v":8.299999999999999},{"$f":"B8","v":"EPS-08"},"Install and terminate the Electrical cables Supports with all the ancillary equipment, as specified in the project specification.","sum",1]
[null,"!","The equipment must be installed and terminated if and when the civil and mechanical works has been completed and the contractor has permission from the engineer. The item will be certified for payment when the equipment has been inspected, after installation on-site, by the engineer."]
[]
[{"$f":"A11+0.1","v":8.399999999999999},{"$f":"B11","v":"EPS-08"},"Commission the Electrical cables Supports and ancillary equipment, as specified in the project specification.","sum",1]
[null,"!","The equipment will be commissioned if and when the equipment can be put in operation for their intended use. The equipment will be dry commissioned before wet commissioning can commence. As part of the commissioning, the contractor shall submit his/her operation and maintenance manual for approval. The item will be certified for payment when the equipment has been wet commissioned, the equipment can operate and perform as per the project specification and their intended use and the operation and maintenance manual has been approved and accepted by the engineer."]
[]
[]
[]
[null,null,"TOTAL CARRIED TO SUMMARY PAGE"]
[]
["Client                    Witness 1                    Witness 2                    Contractor                    Witness 1                    Witness 2"]

{"sheet":"Electrical 9","index":12,"n_rows":22,"n_cols":7,"rows_kept":22,"merged":[[0,0,0,6],[19,2,19,5],[20,0,20,6],[21,0,21,6]]}
["BILL C: ELECTRICAL EQUIPMENT"]
["Item","Pay Ref.","Description","Unit","Qty","Rate","Amount"]
[9,null,"Control and Instrumentation cables"]
[]
[{"$f":"A3+0.1","v":9.1},{"$f":"\"EPS-0\"&A3","v":"EPS-09"},"Compile a cable route plan, electrical motor and cable schedule for all the Control and Instrumentation cables, to submit for the approval of the engineer, as specified in the project specification.","sum",1]
[null,"!","The item will be certified for payment when the drawings & schedules is approved by the engineer. The contractor will be liable for any costs incurred for equipment ordered without approval of the drawings & schedules.."]
[]
[{"$f":"A5+0.1","v":9.2},{"$f":"B5","v":"EPS-09"},"Supply, deliver and safe keeping of the Control and Instrumentation cables and all ancillary equipment, as specified in the project specification and approved drawings and schedules.","sum",1]
[null,"!","The equipment must be stored on-site, or an extended site, accepted by the client and the engineer. The item will be certified for payment when the equipment has been inspected by the engineer."]
[]
[{"$f":"A8+0.1","v":9.299999999999999},{"$f":"B8","v":"EPS-09"},"Install and terminate the Control and Instrumentation cables with all the ancillary equipment, as specified in the project specification.","sum",1]
[null,"!","The equipment must be installed and terminated if and when the civil and mechanical works has been completed and the contractor has permission from the engineer. The item will be certified for payment when the equipment has been inspected, after installation on-site, by the engineer."]
[]
[{"$f":"A11+0.1","v":9.399999999999999},{"$f":"B11","v":"EPS-09"},"Commission the Control and Instrumentation cables and ancillary equipment, as specified in the project specification.","sum",1]
[null,"!","The equipment will be commissioned if and when the equipment can be put in operation for their intended use. The equipment will be dry commissioned before wet commissioning can commence. As part of the commissioning, the contractor shall submit his/her operation and maintenance manual for approval. The item will be certified for payment when the equipment has been wet commissioned, the equipment can operate and perform as per the project specification and their intended use and the operation and maintenance manual has been approved and accepted by the engineer."]
[]
[]
[]
[]
[null,null,"TOTAL CARRIED TO SUMMARY PAGE"]
[]
["Client                    Witness 1                    Witness 2                    Contractor                    Witness 1                    Witness 2"]

{"sheet":"Electrical 10","index":13,"n_rows":20,"n_cols":7,"rows_kept":20,"merged":[[0,0,0,6],[17,2,17,5],[18,0,18,6],[19,0,19,6]]}
["BILL C: ELECTRICAL EQUIPMENT"]
["Item","Pay Ref.","Description","Unit","Qty","Rate","Amount"]
[10,null,"Small Power & Lighting"]
[]
[{"$f":"A3+0.1","v":10.1},{"$f":"\"EPS-0\"&A3","v":"EPS-010"},"Compile a schedule for the replacement of all the Small Power & Lighting, to submit for the approval of the engineer, as specified in the project specification.","sum",1]
[null,"!","The item will be certified for payment when the drawings & schedules is approved by the engineer. The contractor will be liable for any costs incurred for equipment ordered without approval of the drawings & schedules.."]
[]
[{"$f":"A5+0.1","v":10.2},{"$f":"B5","v":"EPS-010"},"Supply, deliver and safe keeping of the Small Power & Lighting and all ancillary equipment, as specified in the project specification and approved drawings and schedules.","sum",1]
[null,"!","The equipment must be stored on-site, or an extended site, accepted by the client and the engineer. The item will be certified for payment when the equipment has been inspected by the engineer."]
[]
[{"$f":"A8+0.1","v":10.299999999999999},{"$f":"B8","v":"EPS-010"},"Install and terminate the Small Power & Lighting with all the ancillary equipment, as specified in the project specification.","sum",1]
[null,"!","The equipment must be installed and terminated if and when the civil and mechanical works has been completed and the contractor has permission from the engineer. The item will be certified for payment when the equipment has been inspected, after installation on-site, by the engineer."]
[]
[{"$f":"A11+0.1","v":10.399999999999999},{"$f":"B11","v":"EPS-010"},"Commission the Small Power & Lighting and ancillary equipment, as specified in the project specification.","sum",1]
[null,"!","The equipment will be commissioned if and when the equipment can be put in operation for their intended use. The equipment will be dry commissioned before wet commissioning can commence. As part of the commissioning, the contractor shall submit his/her operation and maintenance manual for approval. The item will be certified for payment when the equipment has been wet commissioned, the equipment can operate and perform as per the project specification and their intended use and the operation and maintenance manual has been approved and accepted by the engineer."]
[]
[]
[null,null,"TOTAL CARRIED TO SUMMARY PAGE"]
[]
["Client                    Witness 1                    Witness 2                    Contractor                    Witness 1                    Witness 2"]

{"sheet":"Electrical 11","index":14,"n_rows":39,"n_cols":7,"rows_kept":39,"merged":[[0,0,0,6],[37,0,37,6],[38,0,38,6]]}
["BILL C: ELECTRICAL EQUIPMENT"]
["Item","Pay Ref.","Description","Unit","Qty","Rate","Amount"]
[11,null,"Programmable Logic Controllers"]
[]
[{"$f":"A3+0.1","v":11.1},{"$f":"\"EPS-0\"&A3","v":"EPS-011"},"Supply, deliver and safe keeping of the Programmable Logic Controllers and all ancillary equipment including RIO and HMI, as specified in the project specification.","sum",1]
[null,"!","The equipment must be stored on-site, or an extended site, accepted by the client and the engineer. The item will be certified for payment when the equipment has been inspected by the engineer."]
[]
[{"$f":"A5+0.1","v":11.2},{"$f":"B5","v":"EPS-011"},"Program & Install the Programmable Logic Controllers with all the ancillary equipment, as specified in the project specification.","sum",1]
[null,"!","The equipment must be installed and terminated if and when the civil and mechanical works has been completed and the contractor has permission from the engineer. The item will be certified for payment when the equipment has been inspected, after installation on-site, by the engineer."]
[]
[{"$f":"A8+0.1","v":11.299999999999999},{"$f":"B8","v":"EPS-011"},"Commission the Programmable Logic Controllers and ancillary equipment, as specified in the project specification.","sum",1]
[null,"!","The equipment will be commissioned if and when the equipment can be put in operation for their intended use. The equipment will be dry commissioned before wet commissioning can commence. As part of the commissioning, the contractor shall submit his/her operation and maintenance manual for approval. The item will be certified for payment when the equipment has been wet commissioned, the equipment can operate and perform as per the project specification and their intended use and the operation and maintenance manual has been approved and accepted by the engineer."]
[]
[{"$f":"A11+0.1","v":11.399999999999999},{"$f":"B11","v":"EPS-011"},"Training of the plant operators on the Programmable Logic Controllers and accessories.","sum",1]
[null,"!","The contractor must facilitate a training session to the necessary plant personnel to instruct and explain the operation and maintenance of the equipment to them. The operation and maintenance manual will serve as the study material of this training session. The item will be certified for payment when the engineer has proof that this training was done."]
[]
[null,null,"General PLC Components as in the PLCs above"]
[]
[{"$f":"A14+0.1","v":11.499999999999998},{"$f":"B14","v":"EPS-011"},"8 Analogue Inputs Card","each",1,null,"Rate only"]
[]
[{"$f":"A19+0.1","v":11.599999999999998},{"$f":"B19","v":"EPS-011"},"8 Analogue Outputs Card","each",1,null,"Rate only"]
[]
[{"$f":"A21+0.1","v":11.699999999999998},{"$f":"B21","v":"EPS-011"},"16 Digital Inputs Card","each",1,null,"Rate only"]
[]
[{"$f":"A23+0.1","v":11.799999999999997},{"$f":"B23","v":"EPS-011"},"16 Digital Outputs Card","each",1,null,"Rate only"]
[]
[{"$f":"A25+0.1","v":11.899999999999997},{"$f":"B25","v":"EPS-011"},"Fieldbus interface","each",1,null,"Rate only"]
[]
["11.10",{"$f":"B27","v":"EPS-011"},"ASI bus interface","each",1,null,"Rate only"]
[]
["11.11",{"$f":"B29","v":"EPS-011"},"2 port Ethernet Card","each",1,null,"Rate only"]
[]
[]
[]
[]
[]
[null,null,"TOTAL CARRIED TO SUMMARY PAGE"]
[]
["Client                    Witness 1                    Witness 2                    Contractor                    Witness 1                    Witness 2"]

{"sheet":"Electrical 12","index":15,"n_rows":21,"n_cols":7,"rows_kept":21,"merged":[[0,0,0,6],[18,2,18,5],[19,0,19,6],[20,0,20,6]]}
["BILL C: ELECTRICAL EQUIPMENT"]
["Item","Pay Ref.","Description","Unit","Qty","Rate","Amount"]
[12,null,"Telemetry"]
[]
[{"$f":"A3+0.1","v":12.1},{"$f":"\"EPS-0\"&A3","v":"EPS-012"},"Supply, deliver and safe keeping of the Telemetry and all ancillary equipment, as specified in the project specification.","sum",1]
[null,"!","The equipment must be stored on-site, or an extended site, accepted by the client and the engineer. The item will be certified for payment when the equipment has been inspected by the engineer."]
[]
[{"$f":"A5+0.1","v":12.2},{"$f":"B5","v":"EPS-012"},"Install and terminate the Telemetry with all the ancillary equipment, as specified in the project specification.","sum",1]
[null,"!","The equipment must be installed and terminated if and when the civil and mechanical works has been completed and the contractor has permission from the engineer. The item will be certified for payment when the equipment has been inspected, after installation on-site, by the engineer."]
[]
[{"$f":"A8+0.1","v":12.299999999999999},{"$f":"B8","v":"EPS-012"},"Commission the Telemetry and ancillary equipment, as specified in the project specification.","sum",1]
[null,"!","The equipment will be commissioned if and when the equipment can be put in operation for their intended use. The equipment will be dry commissioned before wet commissioning can commence. As part of the commissioning, the contractor shall submit his/her operation and maintenance manual for approval. The item will be certified for payment when the equipment has been wet commissioned, the equipment can operate and perform as per the project specification and their intended use and the operation and maintenance manual has been approved and accepted by the engineer."]
[]
[{"$f":"A11+0.1","v":12.399999999999999},{"$f":"B11","v":"EPS-012"},"Training of the plant operators on the Telemetry and accessories.","sum",1]
[null,"!","The contractor must facilitate a training session to the necessary plant personnel to instruct and explain the operation and maintenance of the equipment to them. The operation and maintenance manual will serve as the study material of this training session. The item will be certified for payment when the engineer has proof that this training was done."]
[]
[]
[]
[null,null,"TOTAL CARRIED TO SUMMARY PAGE"]
[]
["Client                    Witness 1                    Witness 2                    Contractor                    Witness 1                    Witness 2"]

{"sheet":"Electrical 13","index":16,"n_rows":22,"n_cols":7,"rows_kept":22,"merged":[[0,0,0,6],[19,2,19,5],[20,0,20,6],[21,0,21,6]]}
["BILL C: ELECTRICAL EQUIPMENT"]
["Item","Pay Ref.","Description","Unit","Qty","Rate","Amount"]
[13,null,"Scada"]
[]
[{"$f":"A3+0.1","v":13.1},{"$f":"\"EPS-0\"&A3","v":"EPS-013"},"Supply, deliver and safe keeping of the Scada and all ancillary equipment and licenses, as specified in the project specification.","sum",1]
[null,"!","The equipment must be stored on-site, or an extended site, accepted by the client and the engineer. The item will be certified for payment when the equipment has been inspected by the engineer."]
[]
[{"$f":"A5+0.1","v":13.2},{"$f":"B5","v":"EPS-013"},"Install and terminate the Scada with all the ancillary equipment, as specified in the project specification.","sum",1]
[null,"!","The equipment must be installed and terminated if and when the civil and mechanical works has been completed and the contractor has permission from the engineer. The item will be certified for payment when the equipment has been inspected, after installation on-site, by the engineer."]
[]
[{"$f":"A8+0.1","v":13.299999999999999},{"$f":"B8","v":"EPS-013"},"Commission the Scada and ancillary equipment, as specified in the project specification.","sum",1]
[null,"!","The equipment will be commissioned if and when the equipment can be put in operation for their intended use. The equipment will be dry commissioned before wet commissioning can commence. As part of the commissioning, the contractor shall submit his/her operation and maintenance manual for approval. The item will be certified for payment when the equipment has been wet commissioned, the equipment can operate and perform as per the project specification and their intended use and the operation and maintenance manual has been approved and accepted by the engineer."]
[]
[{"$f":"A11+0.1","v":13.399999999999999},{"$f":"B11","v":"EPS-013"},"Training of the plant operators on the Scada and accessories.","sum",1]
[null,"!","The contractor must facilitate a training session to the necessary plant personnel to instruct and explain the operation and maintenance of the equipment to them. The operation and maintenance manual will serve as the study material of this training session. The item will be certified for payment when the engineer has proof that this training was done."]
[]
[]
[]
[]
[null,null,"TOTAL CARRIED TO SUMMARY PAGE"]
[]
["Client                    Witness 1                    Witness 2                    Contractor                    Witness 1                    Witness 2"]

{"sheet":"Electrical 14","index":17,"n_rows":23,"n_cols":7,"rows_kept":23,"merged":[[0,0,0,6],[20,2,20,5],[21,0,21,6],[22,0,22,6]]}
["BILL C: ELECTRICAL EQUIPMENT"]
["Item","Pay Ref.","Description","Unit","Qty","Rate","Amount"]
[14,null,"Flow Meter"]
[]
[{"$f":"A3+0.1","v":14.1},{"$f":"\"EPS-0\"&A3","v":"EPS-014"},"Supply, deliver and safe keeping of the Flow Meter and all ancillary equipment, as specified in the project specification.","sum",1]
[null,"!","The equipment must be stored on-site, or an extended site, accepted by the client and the engineer. The item will be certified for payment when the equipment has been inspected by the engineer."]
[]
[{"$f":"A5+0.1","v":14.2},{"$f":"B5","v":"EPS-014"},"Install and terminate the Flow Meter with all the ancillary equipment, as specified in the project specification.","sum",1]
[null,"!","The equipment must be installed and terminated if and when the civil and mechanical works has been completed and the contractor has permission from the engineer. The item will be certified for payment when the equipment has been inspected, after installation on-site, by the engineer."]
[]
[{"$f":"A8+0.1","v":14.299999999999999},{"$f":"B8","v":"EPS-014"},"Commission the Flow Meter and ancillary equipment, as specified in the project specification.","sum",1]
[null,"!","The equipment will be commissioned if and when the equipment can be put in operation for their intended use. The equipment will be dry commissioned before wet commissioning can commence. As part of the commissioning, the contractor shall submit his/her operation and maintenance manual for approval. The item will be certified for payment when the equipment has been wet commissioned, the equipment can operate and perform as per the project specification and their intended use and the operation and maintenance manual has been approved and accepted by the engineer."]
[]
[{"$f":"A11+0.1","v":14.399999999999999},{"$f":"B11","v":"EPS-014"},"Training of the plant operators on the Flow Meter and accessories.","sum",1]
[null,"!","The contractor must facilitate a training session to the necessary plant personnel to instruct and explain the operation and maintenance of the equipment to them. The operation and maintenance manual will serve as the study material of this training session. The item will be certified for payment when the engineer has proof that this training was done."]
[]
[]
[]
[]
[]
[null,null,"TOTAL CARRIED TO SUMMARY PAGE"]
[]
["Client                    Witness 1                    Witness 2                    Contractor                    Witness 1                    Witness 2"]

{"sheet":"Electrical 15","index":18,"n_rows":20,"n_cols":7,"rows_kept":20,"merged":[[0,0,0,6],[17,2,17,5],[18,0,18,6],[19,0,19,6]]}
["BILL C: ELECTRICAL EQUIPMENT"]
["Item","Pay Ref.","Description","Unit","Qty","Rate","Amount"]
[15,null,"Ultrasonic Level Meters"]
[]
[{"$f":"A3+0.1","v":15.1},{"$f":"\"EPS-0\"&A3","v":"EPS-015"},"Supply, deliver and safe keeping of the Level Metes and all ancillary equipment, as specified in the project specification.","each",1]
[null,"!","The equipment must be stored on-site, or an extended site, accepted by the client and the engineer. The item will be certified for payment when the equipment has been inspected by the engineer."]
[]
[{"$f":"A5+0.1","v":15.2},{"$f":"B5","v":"EPS-015"},"Install and terminate the Level Metes with all the ancillary equipment, as specified in the project specification.","each",1]
[null,"!","The equipment must be installed and terminated if and when the civil and mechanical works has been completed and the contractor has permission from the engineer. The item will be certified for payment when the equipment has been inspected, after installation on-site, by the engineer."]
[]
[{"$f":"A8+0.1","v":15.299999999999999},{"$f":"B8","v":"EPS-015"},"Commission the Level Metes and ancillary equipment, as specified in the project specification.","each",1]
[null,"!","The equipment will be commissioned if and when the equipment can be put in operation for their intended use. The equipment will be dry commissioned before wet commissioning can commence. As part of the commissioning, the contractor shall submit his/her operation and maintenance manual for approval. The item will be certified for payment when the equipment has been wet commissioned, the equipment can operate and perform as per the project specification and their intended use and the operation and maintenance manual has been approved and accepted by the engineer."]
[]
[{"$f":"A11+0.1","v":15.399999999999999},{"$f":"B11","v":"EPS-015"},"Training of the plant operators on the Level Metes and                accessories.","sum",1]
[null,"!","The contractor must facilitate a training session to the necessary plant personnel to instruct and explain the operation and maintenance of the equipment to them. The operation and maintenance manual will serve as the study material of this training session. The item will be certified for payment when the engineer has proof that this training was done."]
[]
[]
[null,null,"TOTAL CARRIED TO SUMMARY PAGE"]
[]
["Client                    Witness 1                    Witness 2                    Contractor                    Witness 1                    Witness 2"]

{"sheet":"Electrical 16","index":19,"n_rows":18,"n_cols":7,"rows_kept":18,"merged":[[0,0,0,6],[15,2,15,5],[16,0,16,6],[17,0,17,6]]}
["BILL C: ELECTRICAL EQUIPMENT"]
["Item","Pay Ref.","Description","Unit","Qty","Rate","Amount"]
[16,null,"Provisional Amounts"]
[]
[{"$f":"A3+0.1","v":16.1},{"$f":"\"EPS-0\"&A3","v":"EPS-016"},"Provisional amount for Fire Detection as specified in the project specification.","sum",1,{"v":75000,"d":"75,000.00"},{"$f":"F5*E5","v":{"v":75000,"d":"75,000.00"}}]
[null,"!","The appointed contractor to provide quotations for the design, supply, deliver, install, commission and training of the system. The equipment must be stored on-site, or an extended site, accepted by the client and the engineer. The item will be certified for payment when the equipment has been inspected by the engineer."]
[]
[{"$f":"A5+0.1","v":16.200000000000003},{"$f":"B5","v":"EPS-016"},"Provisional amount for Intruder Alarm as specified in the project specification.","sum",1,{"v":50000,"d":"50,000.00"},{"$f":"F8*E8","v":{"v":50000,"d":"50,000.00"}}]
[null,"!","The appointed contractor to provide quotations for the design, supply, deliver, install, commission and training of the system. The equipment must be stored on-site, or an extended site, accepted by the client and the engineer. The item will be certified for payment when the equipment has been inspected by the engineer."]
[]
[]
[]
[]
[]
[]
[null,null,"TOTAL CARRIED TO SUMMARY PAGE"]
[]
["Client                    Witness 1                    Witness 2                    Contractor                    Witness 1                    Witness 2"]

{"sheet":"Electrical Summary","index":20,"n_rows":24,"n_cols":3,"rows_kept":24,"merged":[[0,0,0,1],[0,2,4,2],[1,0,1,1],[2,0,2,1],[3,0,3,1],[4,0,4,1]]}
["METSIMAHOLO LOCAL MUNICIPALITY"]
["UPGRADING OF SASOLBURG WATER PUMP STATION"]
["REFURBISHMENT of ELECTRICAL WORKS"]
["Contract No. MLM 01/2023/24                                    "]
["ELECTRICAL BILL OF QUANTITIES"]
["ITEM","DESCRIPTION","Amount"]
["BILL C: ELECTRICAL EQUIPMENT"]
["1.","Medium Voltage Switchgear","R"]
["2.","500kVA 11kV/400V Transformer","R"]
["3.","Main MCC","R"]
["4.","Electrical Cables","R"]
["5.","Electrical Cables: Terminations","R"]
["6.","Electrical Cables: BCEW","R"]
["7.","Excavations","R"]
["8.","Electrical Cables Supports","R"]
["9.","Control and Instrumentation cables","R"]
["10.","Small Power & Lighting","R"]
["11.","Programmable Logic Controllers","R"]
["12.","Telemetry","R"]
["13.","Scada","R"]
["14.","Flow Meter","R"]
["15.","Ultrasonic Level Meters","R"]
["16.","Provisional Amounts","R"]
[null,"SUB-TOTAL Bill C to be Carried to Final Summary","R"]

{"sheet":"Building","index":21,"n_rows":167,"n_cols":6,"rows_kept":167,"merged":[[0,0,0,2],[2,0,2,5],[3,1,3,5],[11,0,11,5],[12,2,12,5],[14,0,14,5],[15,2,15,5],[17,0,17,5],[18,2,18,5],[22,0,22,5],[23,2,23,5],[26,0,26,5],[27,2,27,5],[29,0,29,5],[30,2,30,5],[33,0,33,5],[34,2,34,5],[36,0,36,5],[37,2,37,5],[39,0,39,5],[40,2,40,5],[43,0,43,5],[44,2,44,5],[47,0,47,5],[48,2,48,5],[52,0,52,5],[53,2,53,5],[55,0,55,5],[56,2,56,5],[59,0,59,5],[60,2,60,5],[63,0,63,5],[64,2,64,5],[67,0,67,4],[135,0,135,5],[136,1,136,4],[137,1,137,4],[138,1,138,4],[139,1,139,4],[140,1,140,4],[141,1,141,4],[142,1,142,4],[143,1,143,4],[144,1,144,4],[145,1,145,4],[146,1,146,4],[147,1,147,4],[148,1,148,4],[149,1,149,4],[150,1,150,4],[151,1,151,4],[152,1,152,4],[153,1,153,4],[154,1,154,4],[155,1,155,4],[156,1,156,4],[157,1,157,4],[158,1,158,4],[159,1,159,4],[160,1,160,4],[161,1,161,4],[162,1,162,4],[163,1,163,4],[164,1,164,4],[165,1,165,4],[166,0,167,0],[166,1,167,4],[166,5,167,5]]}
[]
["METSIMAHOLO LOCAL MUNICIPALITY"]
["BILL D: BUILDING & STRUCTURAL (2 Guard Houses) "]
[2,"Earthworks"]
["Item","Description","unit","quant","rate","amount"]
[2.1,"Site clearance","m2"," 12000"]
[2.2,"Setting out",1,"sum"]
[2.3,"Excavations","m3",20]
[2.4,"Landscape the Site ","Prov",1,"250 000","250 000.00"]
[2.5,"EO for hard rock","m3",50,"rate only"]
[2.6,"EO for soft rock","m3",50,"rate only"]
[]
[3,"Concrete works-foundations"]
[3.1,"Cast strip foundations with 20Mpa concrete","m3",10]
[]
[4,"DPC"]
[4.1,"Dpc under walls","m",60]
[]
[5,"Brickwork sub structure"]
[5.1,"one brickwall","m2",6,"rate only"]
[5.2,"Half brickwall","m2",30]
[5.3,"Brickforce in every course","m",200]
[]
[6,"Filling"]
[6.1,"Use filling from excavations and compact","m3",4]
[6.2,"Use imported approved gravel filling and compact","m3",12]
[]
[7,"DPM"]
[7.1,"Install 250mm micron damp proof membrane under concrete slab","m2",40]
[]
[8,"Electrical-first installation"]
[8.1,"Allow electrical installation for db sleeves under floor","Pc Sum",1,6000," 6000.00"]
[8.2,"Allow for installation of complete high must light on Site (cabling, Concrete footing, connection, and commission). The light must be both electrical and solar dependant","sum",1]
[]
[9,"Plumbing -first installation"]
[9.1,"Allow sleeves for under floor slab","pc sum",1,6000," 6000.00"]
[]
[10,"Concrete works-floor slab"]
[10.1,"Cast floor slab 75mm thick ","m3",4]
[]
[11,"Dpc under walls"]
[11.1,"110mm walls","m",12]
[11.2,"220mm walls","m",40]
[]
[12,"Brickwork superstructure"]
[12.1,"One brickwall","m2",100]
[12.2,"Half brickwall","m2",30]
[]
[13,"Brickforce"]
[13.1,"110mm brickforce","m",150]
[13.2,"220mm brickforse","m",200]
[13.3,"Allow for 6mm double anchor roof wires","each",12]
[]
[14,"Pre-cast lintels"]
[14.1,"SABS Approved concrete lintels","no",12]
[]
[15,"Steel windows"]
[15.1,"Type NC2F windows","no",4]
[15.2,"Type W1 windows (1.2x1.2m)","no",4]
[]
[16,"Steel door frames"]
[16.4,"Steel door frames","no",2]
[16.5,"Steel door -Heavy duty bugler door with lock","no",2]
[]
[17,"Timber doors"]
[17.1,"Meranti open braced door","each",2]
[17.2,"Veneer internal door","each",4]
["Subtotal carried to next page"]
{"$rows_empty":67}
["D: Total Summary Page for Building Works"]
["Item","Description",{"$nulls":3},"amount"]
[2,"Earthworks "]
[3,"Concrete works-foundations"]
[4,"DPC "]
[5,"Brickwork sub structure"]
[6,"Filling"]
[7,"DPM "]
[8,"Electrical-first installation"]
[9,"Plumbing -first installation"]
[10,"Concrete works-floor slab"]
[11,"Dpc under walls "]
[12,"Brickwork superstructure "]
[13,"Brickforce "]
[14,"Pre-cast lintels "]
[15,"Steel windows "]
[16,"Steel door frames/Steel door "]
[17,"Timber doors"]
[18,"Locksets"]
[19,"Plumbing"]
[20,"Electrical"]
[21,"Glazing"]
[22,"Window sills"]
[23,"Ceilings "]
[24,"Roofing "]
[25,"Fascias and Bargeboards"]
[26,"Plastering"]
[27,"Painting"]
[28,"Gutters and downpipes"]
[29,"Tiles "]
[30,"Renovation of Pump Station 1"]
[null,"SUB-TOTAL BILL D TO MAIN SUMMARY PAGE"]

{"sheet":"Building 2","index":22,"n_rows":55,"n_cols":6,"rows_kept":55,"merged":[[0,0,0,2],[2,1,2,4],[4,2,4,5],[8,2,8,5],[10,0,10,5],[11,2,11,5],[13,0,13,5],[17,0,17,5],[18,2,18,5],[22,0,22,5],[23,2,23,5],[26,0,26,5],[29,0,29,5],[30,2,30,5],[33,0,33,5],[34,2,34,5],[38,0,38,5],[39,2,39,5],[43,0,43,5],[44,2,44,5],[47,0,47,5],[48,2,48,5],[51,1,51,4],[52,1,52,4],[54,1,54,4]]}
[]
["METSIMAHOLO LOCAL MUNICIPALITY"]
[null,"Amount brought forward from previous page"]
["Item","Description","unit","quant","rate","amount"]
[18,"Locksets"]
[18.1,"four lever locksets","each",2]
[18.2,"three lever locksets","each",4]
[]
[19,"Plumbing"]
[19.1,"PC Amount for Plumbing as per plan","Pc Sum",1,70000,"70000.00 "]
[]
[20,"Electrical"]
[20.1,"PC Amount for electrical as per plan","Pc Sum",1,40000,40000]
[]
[21,"Glazing"]
[21.1,"4mm obscure glass to bathroom windows","m2",10]
[21.2,"6mm Safety glass to w1 windows","m2",10]
[]
[22,"Windowsills"]
[22.1,"10mm approved fibre cement internal windowsills","m",12]
[22.2,"Approved concrete external windowsills","m",12]
[22.3,"Dpc to underside of sills","m",12]
[]
[23,"Ceilings"]
[23.1,"Pvc ceilings on Branderings to supplier’s details","m2",32]
[23.2,"Approved Cornice with Approved glue","m",72]
[]
[24,"Roofing"]
[24.1,"Allow pc sum for trusses and purlins","pc ",1,30000," 30000.00"]
[]
[25,"Fascia’s and Bargeboards"]
[25.1,"230mm Fascia","m",23]
[25.2,"230mm Bargeboards","m",40]
[]
[26,"Plastering"]
[26.1,"15mm plaster to internal and external walls","m2",180]
[26.2,"EO for Corners","m",56]
[26.3,"25mm screed to floors","m2",30]
[]
[27,"Painting"]
[27.1,"Plaster undercoat","m2",180]
[27.2,"2 layers Dulux Paint to walls","m2",180]
[27.3,"2 layers enamel paint to steel windows and door frames including primer coat","m2",80]
[]
[28,"Gutters and downpipes"]
[28.1,"Approved gutters on gutter brackets","m",10]
[28.2,"Approved downpipes with approved holder bats","m",6]
[]
[29,"Tiles"]
[29.1,"Ceramic floor tiles to floors","m2",30]
[29.2,"150mm white glazed tiles to walls and splash tiles at basins and sinks","m2",4]
[]
[30,"Renovation of Existing Pump Station 1 "]
[30.1,"Replacement of the existing roof structure (old trusses and old roof sheets) with steel roof structure and new roof sheets with new gutters and ceiling, paint work, replace existing wooden door with steel door, waterproofing the pump house","Prov",1,500000,500000]
[null,"total carried to summary page"]

{"sheet":"Building Summary","index":23,"n_rows":32,"n_cols":3,"rows_kept":32,"merged":[[0,0,0,2]]}
["Summary"]
["Item","Description","amount"]
[2,"Earthworks"]
[3,"Concrete works-foundations"]
[4,"DPC"]
[5,"Brickwork sub structure"]
[6,"Filling"]
[7,"DPM"]
[8,"Electical-first installation"]
[9,"Plumbing -first installation"]
[10,"Concrete works-floor slab"]
[11,"Dpc under walls"]
[12,"Brickwork superstructure"]
[13,"Brickforce"]
[14,"Pre-cast lintels"]
[15,"Steel windows"]
[16,"Steel door frames"]
[17,"Timber doors"]
[18,"Locksets"]
[19,"Plumbing"]
[20,"Electrical"]
[21,"Glazing"]
[22,"Window sills"]
[23,"Ceilings"]
[24,"Roofing"]
[25,"Fascias and Bargeboards"]
[26,"Plastering"]
[27,"Painting"]
[28,"Gutters and downpipes"]
[29,"Tiles"]
[]
[null,"Sub total Bill D to be Carried to Final Summary"]

{"sheet":"OHS","index":24,"n_rows":129,"n_cols":6,"rows_kept":129,"merged":[[0,0,0,2],[3,0,4,0],[3,2,4,2],[3,3,4,3],[3,4,4,4],[3,5,4,5],[5,1,5,3],[6,0,8,0],[6,2,8,2],[6,3,8,3],[6,4,8,4],[6,5,8,5],[9,1,9,3],[10,0,39,0],[10,2,25,2],[10,3,25,3],[10,4,25,4],[10,5,25,5],[41,0,43,0],[41,2,43,2],[41,3,43,3],[41,4,43,4],[41,5,43,5],[45,0,48,0],[45,2,48,2],[45,3,48,3],[45,4,48,4],[45,5,48,5],[49,0,50,0],[49,2,50,2],[49,3,50,3],[49,4,50,4],[49,5,50,5],[51,0,52,0],[51,2,52,2],[51,3,52,3],[51,4,52,4],[51,5,52,5],[54,0,56,0],[54,2,56,2],[54,3,56,3],[54,4,56,4],[54,5,56,5],[58,2,60,2],[58,3,60,3],[58,4,60,4],[58,5,60,5],[61,2,85,2],[61,3,85,3],[61,4,85,4],[61,5,85,5],[97,0,105,0],[97,2,100,2],[97,3,100,3],[97,4,100,4],[97,5,100,5],[106,0,109,0],[106,2,109,2],[106,3,109,3],[106,4,109,4],[106,5,109,5],[110,0,113,0],[110,1,111,1],[110,2,113,2],[110,3,113,3],[110,4,113,4],[110,5,113,5],[115,0,117,0],[115,2,117,2],[115,3,117,3],[115,4,117,4],[115,5,117,5],[118,0,126,0],[128,0,128,4]]}
[]
["METSIMAHOLO LOCAL MUNICIPALITY"]
[" Item","Description","unit","quant","rate","amount"]
[null,"BILL E - OCCUPATIONAL"]
[null,"HEALTH &  SAFETY"]
[1,"Notification of Construction Work"]
[null,"Allow for the costs on notification","sum",1]
[null,"of the Provincial Director of"]
[null,"construction work Regulation"]
[2,"Program"]
[null,"Allow for the costs on setting up a"]
[null,"Health and Safety Program"]
[null,"including File on site Regulation 3"]
[null,"& 5. Include the costs to compile"]
[null,"the following documents for the file"]
[null,"to be kept on site."]
[null,"Copy of Construction Regulations"]
[null,"Copy of tender document"]
[null,"Copy of drawings"]
[null,"Notification of construction work"]
[null,"Letters of appointment"]
[null,"Company safety Policy"]
[null,"Company organogramme"]
[null,"Notice in respect of machinery"]
[null,"Ten commandments of safety"]
[null,"Emergency telephone numbers"]
[null,"List of subcontractors"]
[null,"Proof of Registration with COID"]
[null,"Insurer"]
[null,"Training material"]
[null,"Risk Assessments and method"]
[null,"statements"]
[null,"Registers as specified elsewhere"]
[null,"Safe work procedures"]
[null,"The file shall be a lever arch file"]
[null,"With original colour documents of"]
[null,"acceptable standards."]
[null,"The file will be expanded during"]
[null,"The project as and when required"]
[null," By the Client.","sum",1]
[3,"Risk Assessment"]
[null,"Allow for the costs of a competent","sum",1]
[null," person to carry out a Risk"]
[null,"Assessment "]
[4,"She Co-ordinator"]
[null,"Allow for the appointment of a","months"]
[null,"SHE Coordinator to do monthly"]
[null,"Inspections (Control on SHE"]
[null,"Representative)"]
[5,"Health & Safety Induction "]
[null,"Trainer"]
[null,"Allow for the appointment of a H & S","sum",1]
[null,"Induction Trainer"]
[6,"Safe Work Procedures"]
[null,"Allow for the costs of setting up","sum",1]
[null,"safe work procedures by"]
[null,"competent person."]
[7,"She Representative"]
[null,"Allow for the appointment of a","months"]
[null,"SHE Representative to be"]
[null,"permanently on site."]
[null,"Allow for the following"]
[null,"appointments to be part of the"]
[null,"functions of the "]
[null,"SHE Representative"]
[null,"Accident Investigator"]
[null,"Allow for the appointment of an"]
[null,"Accident Investigator"]
[null,"Construction Vehicle and"]
[null,"Mobile Plant Inspectors"]
[null,"Allow for the appointment of a full"]
[null,"time inspector of construction"]
[null,"vehicles"]
[null,"Hand Tool Inspector"]
[null,"Allow for the appointment of a full"]
[null,"time Hand Tool Inspector"]
[null,"Portable Electrical Equipment"]
[null,"Inspector"]
[null,"Allow for the appointment of a full"]
[null,"time Portable Electrical"]
[null,"Equipment Inspector"]
[null,"Stacking and Storage"]
[null,"Inspector"]
[null,"Allow for the costs of a competent"]
[null,"person to supervise all stacking"]
[null,"and storage"]
[null,"Hygiene and Facility Inspector"]
[null,"Allow for the appointment of a full"]
[null,"time Hygiene and facility"]
[null,"Inspector"]
[null,"Fire Equipment Inspector"]
[null,"Allow for the costs of a competent"]
[null,"person to inspect all fire"]
[null,"equipment"]
[null,"First Aid Box Inspector"]
[null,"Allow for the costs of a competent"]
[null,"person to inspect the first -aid box","Sum"]
[]
[null,"Allow for the following"]
[null,"appointments of personnel"]
[null,"with responsibilities towards"]
[null,"H&S Supervisors"]
[null,"Allow for the appointment of full"]
[null,"time employees as the"]
[null,"construction supervisors"]
[null,null," months"]
[null,"Fire Fighting Equipment","ea",2]
[null,"Provide 3 kg firefighting"]
[null,"equipment suitable for electrical"]
[null,"fires on each site"]
[null,"First Aid","ea",1]
[]
[null,"Allow for the cost of a basic First"]
[null,"Aid Kit and Stretcher"]
[null,"Personal Protective clothing"]
[null,"Provisional rates for the following","ea",1]
[null,"Items will be remeasurable"]
[null,"Shoulder length PVC Gloves"]
[null,"Plastic Trousers","ea",1]
[null,"Safety Goggles","ea",1]
[null,"Gum Boots","ea",1]
[null,"Welding Helmet","ea",1]
[null,"Gas Welding Safety Goggles","ea",1]
[null,"Safety Shoes","ea",1]
[null,"Dust Masks","ea",1]
[null,"Leather Aprons","ea",1]
[null,"Hard Hats","ea",1]
[]
["Total Carried to Summary Page",{"$nulls":4}," "]

{"sheet":"Final Summary","index":25,"n_rows":13,"n_cols":5,"rows_kept":13,"merged":[[0,0,0,5],[1,0,1,5],[2,1,2,3],[2,4,2,5],[3,1,3,3],[3,4,3,5],[4,1,4,3],[4,4,4,5],[5,1,5,3],[5,4,5,5],[6,1,6,3],[6,4,6,5],[7,1,7,3],[7,4,7,5],[8,1,8,3],[8,4,8,5],[9,1,9,3],[9,4,9,5],[10,1,10,3],[10,4,10,5],[11,1,11,3],[11,4,11,5],[12,1,12,3],[12,4,12,5]]}
[]
["METSIMAHOLO LOCAL MUNICIPALITY"]
[null,"MAIN TOTAL SUMMARY PAGE",null,null,"TOTAL AMOUNT"]
["A","P & G,s"]
["B","MECHANICAL WORKS"]
["C","ELECTRICAL WORKS"]
["D","BUILDING WORKS"]
["E","OHS"]
["F","SUB-TOTAL"]
["G","CONTINGENCIES @ 10%"]
["H","TOTAL EXCL VAT"]
["I","VAT @ 15%"]
["J","TOTAL TENDER AMOUNT CARRIED TO FORM OF OFFER"]